fUST/lending_fUST_20250115
["ID","MTS","AMOUNT","RATE_DAILY","PERIOD"]
[348991004,1736922632812,-459.90070222,0.00019177,2]
[348991006,1736922632822,-500.0,0.00019177,2]
[348991008,1736922632831,-500.0,0.00019177,2]
[348991010,1736922632841,-500.0,0.00019177,2]
[348991012,1736922632850,-500.0,0.00019177,2]
[348991014,1736922632860,-500.0,0.00019177,2]
[348991016,1736922632870,-500.0,0.00019177,2]
[348991018,1736922632879,-500.0,0.00019177,2]
[348991020,1736922632889,-500.0,0.00019177,2]
[348991022,1736922632898,-613.27658645,0.00019177,2]
[348991024,1736922632907,-500.0,0.00019177,2]
[348991026,1736922632918,-500.0,0.00019177,2]
[348991028,1736922632927,-500.0,0.00019177,2]
[348991030,1736922632936,-500.0,0.00019177,2]
[348991032,1736922632945,-468.67353922,0.00019178,2]
[348991034,1736922632955,-500.97196082,0.00019178,2]
[348991036,1736922632964,-536.14016044,0.00019178,2]
[348991038,1736922632973,-500.0,0.00019178,2]
[348991040,1736922632982,-500.0,0.00019178,2]
[348991042,1736922632991,-500.0,0.00019178,2]
[348991044,1736922633001,-500.0,0.00019178,2]
[348991046,1736922633010,-259.12177444,0.00019178,2]
[348991048,1736922633019,-500.0,0.00019178,2]
[348991050,1736922633028,-512.95071746,0.00019178,2]
[348991052,1736922633038,-501.23191164,0.00019178,2]
[348991054,1736922633048,-397.47442299,0.00019178,2]
[348991056,1736922633058,-500.0,0.00019178,2]
[348991058,1736922633068,-500.0,0.00019178,2]
[348991059,1736922633078,-500.0,0.00019178,2]
[348991061,1736922633088,-500.0,0.00019178,7]
[348991063,1736922633098,-500.0,0.00019178,2]
[348991065,1736922633109,-963.52,0.00019178,2]
[348991067,1736922633118,-500.0,0.00019178,2]
[348991068,1736922633128,-500.0,0.00019178,2]
[348991070,1736922633137,-500.0,0.00019178,2]
[348991072,1736922633147,-500.0,0.00019178,2]
[348991074,1736922633160,-2912.93,0.00019178,2]
[348991076,1736922633170,-500.0,0.00019178,2]
[348991078,1736922633179,-500.0,0.00019178,2]
[348991080,1736922633189,-500.0,0.00019178,2]
[348991082,1736922633198,-500.0,0.00019178,2]
[348991084,1736922633207,-500.0,0.00019178,2]
[348991085,1736922633218,-500.0,0.00019178,2]
[348991087,1736922633227,-500.0,0.00019178,2]
[348991089,1736922633236,-500.0,0.00019178,2]
[348991091,1736922633246,-500.0,0.00019178,2]
[348991093,1736922633256,-500.0,0.00019178,2]
[348991095,1736922633266,-500.0,0.00019178,2]
[348991096,1736922633276,-500.0,0.00019178,2]
[348991097,1736922633285,-500.0,0.00019178,2]
[348991098,1736922633295,-500.0,0.00019178,2]
[348991099,1736922633304,-500.0,0.00019178,2]
[348991100,1736922633313,-500.0,0.00019178,2]
[348991101,1736922633323,-500.0,0.00019178,2]
[348991102,1736922633333,-501.34102626,0.00019178,2]
[348991103,1736922633342,-500.0,0.00019178,2]
[348991104,1736922633352,-500.0,0.00019178,2]
[348991105,1736922633362,-500.0,0.00019178,2]
[348991106,1736922633372,-500.0,0.00019178,2]
[348991107,1736922633381,-500.0,0.00019178,2]
[348991108,1736922633391,-1076.64,0.00019178,2]
[348991109,1736922633400,-500.0,0.00019178,2]
[348991110,1736922633410,-500.0,0.00019178,2]
[348991111,1736922633420,-581.86620467,0.00019178,2]
[348991112,1736922633430,-500.0,0.00019178,2]
[348991113,1736922633439,-500.0,0.00019178,2]
[348991114,1736922633450,-500.0,0.00019178,2]
[348991115,1736922633459,-1054.57,0.00019178,2]
[348991116,1736922633469,-500.0,0.00019178,2]
[348991117,1736922633478,-500.0,0.00019178,2]
[348991118,1736922633488,-1497.9,0.00019178,2]
[348991119,1736922633497,-621.64,0.00019178,2]
[348991120,1736922633507,-500.0,0.00019178,2]
[348991121,1736922633516,-500.0,0.00019178,2]
[348991122,1736922633525,-500.0,0.00019178,2]
[348991123,1736922633535,-500.0,0.00019178,2]
[348991124,1736922633546,-154.49,0.00019178,2]
[348991125,1736922633558,-499.0,0.00019314,2]
[348991126,1736922633567,-500.0,0.00019315,3]
[348991127,1736922633577,-500.0,0.00019315,3]
[348991128,1736922633587,-500.0,0.00019315,3]
[348991129,1736922633598,-500.0,0.00019315,3]
[348991130,1736922633608,-963.52,0.00019315,3]
[348991131,1736922633618,-500.0,0.00019315,2]
[348991132,1736922633629,-500.0,0.00019315,3]
[348991133,1736922633640,-500.0,0.00019315,3]
[348991134,1736922633649,-500.0,0.00019315,3]
[348991135,1736922633659,-2912.93,0.00019315,3]
[348991136,1736922633669,-500.0,0.00019315,3]
[348991137,1736922633678,-500.0,0.00019315,3]
[348991138,1736922633688,-500.0,0.00019315,3]
[348991139,1736922633698,-500.0,0.00019315,3]
[348991140,1736922633709,-500.0,0.00019315,3]
[348991141,1736922633719,-500.0,0.00019315,3]
[348991142,1736922633729,-545.10832914,0.00019315,3]
[348991143,1736922633739,-500.0,0.00019315,3]
[348991144,1736922633748,-500.0,0.00019315,3]
[348991145,1736922633758,-500.0,0.00019315,3]
[348991146,1736922633768,-500.0,0.00019315,3]
[348991147,1736922633778,-500.0,0.00019315,3]
[348991148,1736922633787,-500.0,0.00019315,3]
[348991149,1736922633797,-500.0,0.00019315,3]
[348991150,1736922633806,-500.0,0.00019315,3]
[348991151,1736922633816,-500.0,0.00019315,3]
[348991152,1736922633826,-500.0,0.00019315,3]
[348991153,1736922633835,-500.0,0.00019315,3]
[348991154,1736922633845,-1076.64,0.00019315,3]
[348991155,1736922633854,-500.0,0.00019315,3]
[348991156,1736922633864,-500.0,0.00019315,3]
[348991157,1736922633873,-500.0,0.00019315,3]
[348991158,1736922633883,-500.0,0.00019315,3]
[348991159,1736922633893,-500.0,0.00019315,3]
[348991160,1736922633902,-1054.57,0.00019315,3]
[348991161,1736922633913,-500.0,0.00019315,3]
[348991162,1736922633923,-500.0,0.00019315,3]
[348991163,1736922633933,-1497.9,0.00019315,2]
[348991164,1736922633943,-621.64,0.00019315,3]
[348991165,1736922633953,-500.0,0.00019315,3]
[348991166,1736922633964,-578.13361012,0.00019352,2]
[348991167,1736922633973,-277.779,0.00019414,2]
[348991168,1736922633982,-500.0,0.00019452,3]
[348991169,1736922633991,-500.0,0.00019452,3]
[348991170,1736922634001,-500.0,0.00019452,3]
[348991171,1736922634010,-500.0,0.00019452,3]
[348991172,1736922634020,-963.52,0.00019452,3]
[348991173,1736922634030,-500.0,0.00019452,2]
[348991174,1736922634039,-366.54705706,0.00019452,3]
[348991175,1736922634048,-500.0,0.00019452,3]
[348991176,1736922634057,-500.0,0.00019452,3]
[348991177,1736922634068,-2912.93,0.00019452,3]
[348991178,1736922634077,-500.0,0.00019452,3]
[348991179,1736922634087,-500.0,0.00019452,3]
[348991180,1736922634096,-500.0,0.00019452,3]
[348991181,1736922634106,-500.0,0.00019452,3]
[348991182,1736922634116,-500.0,0.00019452,3]
[348991183,1736922634126,-500.0,0.00019452,3]
[348991184,1736922634135,-500.0,0.00019452,3]
[348991185,1736922634144,-500.0,0.00019452,3]
[348991186,1736922634154,-150.96058678,0.00019452,3]
[348991187,1736922634165,-500.0,0.00019452,3]
[348991188,1736922634175,-500.0,0.00019452,3]
[348991189,1736922634184,-500.0,0.00019452,3]
[348991190,1736922634194,-500.0,0.00019452,3]
[348991191,1736922634204,-500.0,0.00019452,3]
[348991192,1736922634213,-500.0,0.00019452,3]
[348991193,1736922634223,-412.76,0.00019452,3]
[348991194,1736922634232,-500.0,0.00019452,3]
[348991195,1736922634241,-1076.64,0.00019452,3]
[348991196,1736922634251,-500.0,0.00019452,3]
[348991197,1736922634260,-500.0,0.00019452,3]
[348991198,1736922634270,-500.0,0.00019452,3]
[348991199,1736922634280,-500.0,0.00019452,3]
[348991200,1736922634290,-500.0,0.00019452,3]
[348991201,1736922634299,-1054.57,0.00019452,3]
[348991202,1736922634308,-304.62,0.00019452,3]
[348991203,1736922634318,-500.0,0.00019452,3]
[348991204,1736922634328,-1497.9,0.00019452,2]
[348991205,1736922634337,-621.64,0.00019452,3]
[348991206,1736922634347,-500.0,0.00019452,3]
[348991207,1736922634357,-525.58274835,0.00019588,2]
[348991208,1736922634366,-500.0,0.00019589,3]
[348991209,1736922634376,-500.0,0.00019589,3]
[348991210,1736922634385,-500.0,0.00019589,3]
[348991211,1736922634395,-500.0,0.00019589,3]
[348991212,1736922634406,-963.52,0.00019589,3]
[348991213,1736922634419,-500.0,0.00019589,2]
[348991214,1736922634429,-500.0,0.00019589,3]
[348991215,1736922634439,-500.0,0.00019589,3]
[348991216,1736922634448,-2912.93,0.00019589,3]
[348991217,1736922634458,-500.0,0.00019589,3]
[348991218,1736922634467,-500.0,0.00019589,3]
[348991219,1736922634477,-500.0,0.00019589,3]
[348991220,1736922634487,-500.0,0.00019589,3]
[348991221,1736922634499,-500.0,0.00019589,3]
[348991222,1736922634510,-500.0,0.00019589,3]
[348991223,1736922634520,-500.0,0.00019589,3]
[348991224,1736922634530,-500.0,0.00019589,3]
[348991225,1736922634539,-500.0,0.00019589,3]
[348991226,1736922634553,-500.0,0.00019589,3]
[348991227,1736922634565,-500.0,0.00019589,3]
[348991228,1736922634574,-500.0,0.00019589,3]
[348991229,1736922634584,-500.0,0.00019589,3]
[348991230,1736922634595,-500.0,0.00019589,3]
[348991231,1736922634607,-500.0,0.00019589,3]
[348991232,1736922634616,-1076.64,0.00019589,3]
[348991233,1736922634628,-500.0,0.00019589,3]
[348991234,1736922634640,-500.0,0.00019589,3]
[348991235,1736922634650,-500.0,0.00019589,3]
[348991236,1736922634758,-500.0,0.00019589,3]
[348991237,1736922634771,-500.0,0.00019589,3]
[348991238,1736922634781,-1054.57,0.00019589,3]
[348991239,1736922634791,-500.0,0.00019589,3]
[348991240,1736922634800,-1497.9,0.00019589,2]
[348991241,1736922634810,-621.64,0.00019589,3]
[348991242,1736922634819,-500.0,0.00019589,3]
[348991243,1736922634830,-500.0,0.00019726,3]
[348991244,1736922634839,-500.0,0.00019726,3]
[348991245,1736922634848,-500.0,0.00019726,3]
[348991246,1736922634857,-602.02824596,0.00019726,3]
[348991247,1736922634868,-963.52,0.00019726,3]
[348991248,1736922634877,-500.0,0.00019726,2]
[348991249,1736922634887,-500.0,0.00019726,3]
[348991250,1736922634896,-500.0,0.00019726,3]
[348991251,1736922634906,-2912.93,0.00019726,3]
[348991252,1736922634916,-500.0,0.00019726,3]
[348991253,1736922634926,-500.0,0.00019726,3]
[348991254,1736922634936,-500.0,0.00019726,3]
[348991255,1736922634945,-500.0,0.00019726,3]
[348991256,1736922634956,-500.0,0.00019726,3]
[348991257,1736922634965,-500.0,0.00019726,3]
[348991258,1736922634975,-500.0,0.00019726,3]
[348991259,1736922634984,-500.0,0.00019726,3]
[348991260,1736922634994,-500.0,0.00019726,3]
[348991261,1736922635004,-500.0,0.00019726,3]
[348991262,1736922635014,-500.0,0.00019726,3]
[348991263,1736922635024,-500.0,0.00019726,3]
[348991264,1736922635034,-500.0,0.00019726,3]
[348991265,1736922635045,-500.0,0.00019726,3]
[348991266,1736922635055,-500.0,0.00019726,3]
[348991267,1736922635065,-1076.64,0.00019726,3]
[348991268,1736922635075,-500.0,0.00019726,3]
[348991269,1736922635085,-500.0,0.00019726,3]
[348991270,1736922635097,-500.0,0.00019726,3]
[348991271,1736922635106,-500.0,0.00019726,3]
[348991272,1736922635116,-500.0,0.00019726,3]
[348991273,1736922635126,-1054.57,0.00019726,3]
[348991274,1736922635135,-500.0,0.00019726,3]
[348991275,1736922635146,-1497.9,0.00019726,2]
[348991276,1736922635156,-621.64,0.00019726,3]
[348991277,1736922635168,-500.0,0.00019726,3]
[348991278,1736922635178,-500.0,0.00019863,3]
[348991279,1736922635187,-500.0,0.00019863,3]
[348991280,1736922635196,-500.0,0.00019863,3]
[348991281,1736922635206,-500.0,0.00019863,9]
[348991282,1736922635216,-963.52,0.00019863,3]
[348991283,1736922635225,-500.0,0.00019863,2]
[348991284,1736922635234,-500.0,0.00019863,3]
[348991285,1736922635243,-500.0,0.00019863,3]
[348991286,1736922635252,-2912.93,0.00019863,3]
[348991287,1736922635262,-500.0,0.00019863,3]
[348991288,1736922635271,-500.0,0.00019863,3]
[348991289,1736922635280,-500.0,0.00019863,3]
[348991290,1736922635290,-500.0,0.00019863,3]
[348991291,1736922635301,-500.0,0.00019863,3]
[348991292,1736922635311,-500.0,0.00019863,3]
[348991293,1736922635322,-500.0,0.00019863,3]
[348991294,1736922635332,-500.0,0.00019863,3]
[348991295,1736922635343,-500.0,0.00019863,3]
[348991296,1736922635352,-500.0,0.00019863,3]
[348991297,1736922635363,-500.0,0.00019863,3]
[348991298,1736922635375,-500.0,0.00019863,3]
[348991299,1736922635385,-500.0,0.00019863,3]
[348991300,1736922635395,-500.0,0.00019863,3]
[348991301,1736922635405,-500.0,0.00019863,3]
[348991302,1736922635416,-1076.64,0.00019863,3]
[348991303,1736922635426,-500.0,0.00019863,3]
[348991304,1736922635435,-500.0,0.00019863,3]
[348991305,1736922635444,-500.0,0.00019863,3]
[348991306,1736922635453,-500.0,0.00019863,3]
[348991307,1736922635462,-500.0,0.00019863,3]
[348991308,1736922635471,-1054.57,0.00019863,3]
[348991309,1736922635481,-500.0,0.00019863,3]
[348991310,1736922635490,-1497.9,0.00019863,2]
[348991311,1736922635500,-621.64,0.00019863,3]
[348991312,1736922635509,-274.90795581,0.00019863,3]
[348991313,1736922635524,-308.5037054,0.00019866,2]
[348991314,1736922635534,-203.51072082,0.000199,2]
[348991315,1736922635543,-301.86,0.0002,3]
[348991316,1736922635558,-500.0,0.0002,3]
[348991317,1736922635568,-963.52,0.0002,3]
[348991318,1736922635577,-500.0,0.0002,2]
[348991319,1736922635587,-500.0,0.0002,3]
[348991320,1736922635596,-500.0,0.0002,3]
[348991321,1736922635605,-2912.93,0.0002,3]
[348991322,1736922635615,-500.0,0.0002,3]
[348991323,1736922635626,-500.0,0.0002,3]
[348991324,1736922635637,-500.0,0.0002,3]
[348991325,1736922635647,-500.0,0.0002,3]
[348991326,1736922635657,-599.46,0.0002,3]
[348991327,1736922635667,-500.0,0.0002,3]
[348991328,1736922635676,-500.0,0.0002,3]
[348991329,1736922635686,-500.0,0.0002,3]
[348991330,1736922635695,-500.0,0.0002,3]
[348991331,1736922635705,-36682.31274893,0.0002,5]
[348991332,1736922635720,-1714.805804,0.0002,5]
[348991333,1736922635732,-26460.39531981,0.0002,5]
[348991334,1736922635741,-500.0,0.0002,3]
[348991335,1736922635750,-500.0,0.0002,3]
[348991336,1736922635759,-1076.64,0.0002,3]
[348991337,1736922635769,-500.0,0.0002,3]
[348991338,1736922635779,-500.0,0.0002,3]
[348991339,1736922635789,-367.45,0.0002,3]
[348991340,1736922635799,-500.0,0.0002,3]
[348991341,1736922635809,-500.0,0.0002,3]
[348991342,1736922635818,-1054.57,0.0002,3]
[348991343,1736922635827,-500.0,0.0002,3]
[348991344,1736922635837,-1497.9,0.0002,2]
[348991345,1736922635846,-621.64,0.0002,3]
[348991346,1736922635856,-472.36013939,0.00020005,2]
[348991347,1736922635866,-500.0,0.00020051,2]
[348991348,1736922635875,-506.60805802,0.00020136,3]
[348991385,1736922638029,-189.68882962,0.00019178,2]
[348991387,1736922638039,-524.61040851,0.00019417,2]
[348991389,1736922638048,-143.05194198,0.00020136,3]
[348991390,1736922638063,-963.52,0.00020136,3]
[348991392,1736922638073,-302.08,0.00020136,2]
[348991394,1736922638084,-500.0,0.00020136,3]
[348991396,1736922638093,-227.43840697,0.00020136,3]
[348991398,1736922638105,-272.56159303,0.00020136,3]
[348991400,1736922638115,-2912.93,0.00020136,3]
[348991402,1736922638125,-431.32,0.00020136,3]
[348991404,1736922638134,-500.0,0.00020136,3]
[348991406,1736922638144,-500.0,0.00020136,3]
[348991408,1736922638154,-500.0,0.00020136,3]
[348991410,1736922638163,-500.0,0.00020136,3]
[348991412,1736922638173,-500.0,0.00020136,3]
[348991414,1736922638182,-609.34,0.00020136,3]
[348991416,1736922638192,-162.7,0.00020136,3]
[348991418,1736922638201,-500.0,0.00020136,3]
[348991420,1736922638210,-500.0,0.00020136,3]
[348991422,1736922638219,-1076.64,0.00020136,3]
[348991424,1736922638228,-500.0,0.00020136,3]
[348991426,1736922638238,-500.0,0.00020136,3]
[348991428,1736922638247,-500.0,0.00020136,3]
[348991430,1736922638256,-1054.57,0.00020136,3]
[348991431,1736922638265,-500.0,0.00020136,3]
[348991433,1736922638276,-1497.9,0.00020136,2]
[348991435,1736922638286,-621.64,0.00020136,3]
[348991437,1736922638295,-500.0,0.00020164,2]
[348991439,1736922638305,-963.52,0.00020273,3]
[348991441,1736922638314,-500.0,0.00020273,3]
[348991443,1736922638323,-500.0,0.00020273,3]
[348991445,1736922638332,-2912.93,0.00020273,3]
[348991447,1736922638342,-500.0,0.00020273,3]
[348991449,1736922638351,-500.0,0.00020273,3]
[348991450,1736922638360,-500.0,0.00020273,3]
[348991452,1736922638370,-276.56,0.00020273,3]
[348991454,1736922638379,-500.0,0.00020273,3]
[348991456,1736922638388,-454.94,0.00020273,3]
[348991458,1736922638398,-500.0,0.00020273,3]
[348991460,1736922638408,-1076.64,0.00020273,3]
[348991462,1736922638418,-542.42,0.00020273,3]
[348991464,1736922638428,-373.32,0.00020273,3]
[348991466,1736922638439,-290.14,0.00020273,3]
[348991468,1736922638448,-1054.57,0.00020273,3]
[348991470,1736922638457,-500.0,0.00020273,3]
[348991472,1736922638467,-1497.9,0.00020273,2]
[348991474,1736922638475,-621.64,0.00020273,3]
[348991475,1736922638485,-2311.0,0.00020333,2]
[348991477,1736922638495,-395.0,0.00020333,2]
[348991479,1736922638504,-150.0,0.00020333,2]
[348991481,1736922638513,-963.52,0.0002041,3]
[348991483,1736922638523,-170.69057304,0.0002041,2]
[348991485,1736922638532,-485.16,0.0002041,3]
[348991487,1736922638542,-500.0,0.0002041,3]
[348991489,1736922638554,-2912.93,0.0002041,3]
[348991491,1736922638563,-500.0,0.0002041,3]
[348991493,1736922638573,-330.18,0.0002041,3]
[348991495,1736922638582,-500.0,0.0002041,3]
[348991497,1736922638594,-346.56,0.0002041,3]
[348991499,1736922638604,-500.0,0.0002041,3]
[348991501,1736922638613,-1076.64,0.0002041,3]
[348991503,1736922638623,-1054.57,0.0002041,3]
[348991504,1736922638632,-500.0,0.0002041,3]
[348991506,1736922638641,-1497.9,0.0002041,2]
[348991508,1736922638650,-621.64,0.0002041,3]
[348991510,1736922638659,-250.549724,0.00020447,2]
[348991512,1736922638668,-198.750653,0.00020521,2]
[348991514,1736922638677,-963.52,0.00020547,3]
[348991516,1736922638687,-500.0,0.00020547,3]
[348991518,1736922638698,-2912.93,0.00020547,3]
[348991520,1736922638707,-500.0,0.00020547,3]
[348991522,1736922638716,-151.0,0.00020547,2]
[348991524,1736922638725,-500.0,0.00020547,3]
[348991525,1736922638735,-500.0,0.00020547,3]
[348991527,1736922638744,-1076.64,0.00020547,3]
[348991528,1736922638753,-1054.57,0.00020547,3]
[348991529,1736922638763,-560.5,0.00020547,3]
[348991531,1736922638772,-1497.9,0.00020547,2]
[348991532,1736922638781,-621.64,0.00020547,3]
[348991533,1736922638790,-587.0,0.00020555,2]
[348991534,1736922638799,-203.51072077,0.00020567,2]
[348991535,1736922638809,-308.5037054,0.00020653,2]
[348991536,1736922638819,-151.0,0.00020684,2]
[348991537,1736922638828,-151.0,0.00020684,2]
[348991538,1736922638837,-963.52,0.00020684,3]
[348991539,1736922638846,-500.0,0.00020684,3]
[348991540,1736922638856,-2912.93,0.00020684,3]
[348991541,1736922638865,-517.91245878,0.00020684,4]
[348991542,1736922638874,-500.0,0.00020684,3]
[348991543,1736922638883,-500.0,0.00020684,3]
[348991544,1736922638892,-151.0,0.00020684,2]
[348991545,1736922638902,-500.0,0.00020684,3]
[348991546,1736922638911,-1076.64,0.00020684,3]
[348991547,1736922638923,-151.0,0.00020684,2]
[348991548,1736922638932,-1054.57,0.00020684,3]
[348991549,1736922638941,-1497.9,0.00020684,2]
[348991550,1736922638951,-621.64,0.00020684,3]
[348991551,1736922638960,-151.0,0.00020821,2]
[348991552,1736922638970,-963.52,0.00020821,3]
[348991553,1736922638979,-1275.35,0.00020821,3]
[348991554,1736922638988,-500.0,0.00020821,3]
[348991555,1736922638998,-2912.93,0.00020821,3]
[348991556,1736922639007,-500.0,0.00020821,3]
[348991557,1736922639017,-500.0,0.00020821,3]
[348991558,1736922639026,-500.0,0.00020821,3]
[348991559,1736922639036,-1076.64,0.00020821,3]
[348991560,1736922639045,-1054.57,0.00020821,3]
[348991561,1736922639056,-1497.9,0.00020821,2]
[348991562,1736922639065,-621.64,0.00020821,3]
[348991563,1736922639075,-963.52,0.00020958,3]
[348991564,1736922639084,-1275.35,0.00020958,3]
[348991565,1736922639094,-500.0,0.00020958,3]
[348991566,1736922639104,-2912.93,0.00020958,3]
[348991567,1736922639114,-500.0,0.00020958,3]
[348991568,1736922639124,-500.0,0.00020958,3]
[348991569,1736922639134,-500.0,0.00020958,3]
[348991570,1736922639143,-1076.64,0.00020958,3]
[348991571,1736922639153,-1054.57,0.00020958,3]
[348991572,1736922639163,-1497.9,0.00020958,2]
[348991573,1736922639174,-621.64,0.00020958,3]
[348991574,1736922639183,-963.52,0.00021095,3]
[348991575,1736922639194,-1275.35,0.00021095,3]
[348991576,1736922639203,-500.0,0.00021095,3]
[348991577,1736922639214,-1548.93057198,0.00021095,3]
[348991578,1736922639231,-357.16831372,0.00021095,3]
[348991617,1736922646078,-360.92765711,0.00019178,2]
[348991632,1736922722708,225.494751,0.00013973,2]
[348991633,1736923010940,1000.0,0.00025,120]
[348991635,1736923576986,214.220013,0.00013973,2]
[348991670,1736923836861,-1778.56564325,0.00017872,2]
[348991681,1736923836961,-1638.97718917,0.00017872,2]
[348991683,1736923836977,-380.93473713,0.00017872,2]
[348991685,1736923836988,-500.0,0.00017972,2]
[348991687,1736923836998,-300.0,0.00018332,2]
[348991689,1736923837007,-122.28797804,0.00018333,2]
[348991706,1736923838331,-11007.08955594,0.00018333,2]
[348992029,1736923843329,-1016.0,0.00018333,2]
[348992465,1736924835592,203.509012,0.00013973,2]
[348992512,1736925032538,-708.20300998,0.000166,2]
[348992514,1736925032548,-300.0,0.00016936,2]
[348992515,1736925032557,-4959.02253966,0.00016937,5]
[348992518,1736925032569,-6096.6415793,0.00016937,5]
[348992520,1736925032579,-7591.29328531,0.00016937,5]
[348992522,1736925032589,-23025.1043799,0.00016937,2]
[348992524,1736925032598,-435.31388019,0.00017052,2]
[348992526,1736925032607,-160.5978248,0.00017152,2]
[348992528,1736925032617,-9622.68609059,0.0001784,2]
[348992530,1736925032627,-4002.79063979,0.00017872,2]
[348992539,1736925032749,-500.0,0.00017972,2]
[348992540,1736925032760,-435.31388018,0.00017984,2]
[348992541,1736925032770,-420.0,0.00018499,2]
[348992542,1736925032779,-649.93325091,0.000189,2]
[348992543,1736925032789,-435.31388018,0.00018916,2]
[348992544,1736925032798,-1000.0,0.00019,19]
[348992545,1736925032808,-776.24516024,0.00019,2]
[348992576,1736925033312,-305.93747319,0.00019,2]
[348992577,1736925033324,-1487.85615341,0.00019,2]
[348992578,1736925033334,-1288.78692252,0.00019,3]
[348992579,1736925033343,-154.2518527,0.00019078,2]
[348992580,1736925033353,-301.8540808,0.00019166,2]
[348992581,1736925033362,-233.58981288,0.00019177,2]
[348992582,1736925033372,-215.42731985,0.00019177,2]
[348992583,1736925033382,-500.0,0.00019177,2]
[348992584,1736925033392,-500.0,0.00019177,2]
[348992585,1736925033401,-500.0,0.00019177,2]
[348992586,1736925033412,-500.0,0.00019177,2]
[348992587,1736925033421,-500.0,0.00019177,2]
[348992588,1736925033434,-500.0,0.00019177,2]
[348992589,1736925033444,-500.0,0.00019177,2]
[348992590,1736925033454,-500.0,0.00019177,2]
[348992591,1736925033463,-165.19407954,0.00019177,2]
[348992592,1736925036938,-138.79103345,0.00019177,2]
[348992593,1736925036948,-185.86057934,0.00019177,2]
[348992619,1736925038446,-9622.6860906,0.00017878,2]
[348992620,1736925038456,-314.13942066,0.00019177,2]
[348992621,1736925038466,-500.0,0.00019177,2]
[348992622,1736925038475,-500.0,0.00019177,2]
[348992623,1736925038486,-500.0,0.00019177,2]
[348992624,1736925038496,-500.0,0.00019177,2]
[348992625,1736925038505,-500.0,0.00019177,2]
[348992626,1736925038515,-500.0,0.00019177,2]
[348992627,1736925038524,-500.0,0.00019177,2]
[348992628,1736925038534,-500.0,0.00019177,2]
[348992629,1736925038543,-510.56072655,0.00019177,2]
[348992630,1736925038553,-500.0,0.00019177,2]
[348992631,1736925038563,-500.0,0.00019177,2]
[348992632,1736925038573,-500.0,0.00019177,2]
[348992633,1736925038583,-500.0,0.00019177,2]
[348992634,1736925038593,-500.0,0.00019177,2]
[348992635,1736925038603,-500.0,0.00019177,2]
[348992636,1736925038612,-500.0,0.00019177,2]
[348992637,1736925038622,-500.0,0.00019177,2]
[348992638,1736925038632,-500.0,0.00019177,2]
[348992639,1736925038641,-500.0,0.00019177,2]
[348992640,1736925038651,-500.0,0.00019177,2]
[348992641,1736925038661,-500.0,0.00019177,2]
[348992642,1736925038671,-315.18046177,0.00019177,2]
[348992643,1736925038681,-500.0,0.00019177,2]
[348992644,1736925038690,-500.0,0.00019178,2]